[Event "Early-Titled-Tuesday-Blitz-February-20-2024"]
[Site "Chess.com"]
[Date "2024.02.20"]
[Round "1"]
[White "Anton_Demchenko"]
[Black "Sjakkerntobi"]
[Result "1-0"]
[WhiteElo "2911"]
[BlackElo "2505"]
[TimeControl "180+1"]
[EndTime "8:05:22 PST"]
[Termination "Anton_Demchenko won by resignation"]

1. e4 {[%clk 0:03:00.9]} 1... e6 {[%clk 0:03:00.3]} 2. d4 {[%clk 0:03:00.9]}
2... d5 {[%clk 0:03:01]} 3. Nd2 {[%clk 0:02:59.7]} 3... a6 {[%clk 0:03:01.3]} 4.
Bd3 {[%clk 0:02:56.9]} 4... c5 {[%clk 0:03:01]} 5. dxc5 {[%clk 0:02:55.9]} 5...
Bxc5 {[%clk 0:03:01.9]} 6. Ngf3 {[%clk 0:02:55.8]} 6... Nc6 {[%clk 0:03:00.5]}
7. O-O {[%clk 0:02:53.8]} 7... Nb4 {[%clk 0:03:00.7]} 8. e5 {[%clk 0:02:48.4]}
8... Nxd3 {[%clk 0:02:57.7]} 9. cxd3 {[%clk 0:02:49.3]} 9... Ne7 {[%clk
0:02:44.6]} 10. Nb3 {[%clk 0:02:49.7]} 10... Bb6 {[%clk 0:02:44.9]} 11. Be3
{[%clk 0:02:50.1]} 11... Bc7 {[%clk 0:02:35.9]} 12. Bc5 {[%clk 0:02:46.7]} 12...
O-O {[%clk 0:02:34.7]} 13. Re1 {[%clk 0:02:44.5]} 13... f6 {[%clk 0:02:23.3]}
14. d4 {[%clk 0:02:35.7]} 14... Rf7 {[%clk 0:02:03.6]} 15. Bxe7 {[%clk
0:02:19.1]} 15... Qxe7 {[%clk 0:02:02.6]} 16. Rc1 {[%clk 0:02:18]} 16... Bb6
{[%clk 0:01:51.5]} 17. Nc5 {[%clk 0:02:14.6]} 17... fxe5 {[%clk 0:01:05.8]} 18.
Nxe5 {[%clk 0:02:13.4]} 18... Rf8 {[%clk 0:01:05.7]} 19. Qc2 {[%clk 0:01:48.9]}
19... Ba5 {[%clk 0:00:52.2]} 20. Re3 {[%clk 0:01:45.9]} 20... Bd8 {[%clk
0:00:42.2]} 21. Rh3 {[%clk 0:01:35.5]} 21... g6 {[%clk 0:00:29.9]} 22. Rg3
{[%clk 0:01:23.9]} 22... Qg7 {[%clk 0:00:24.8]} 23. Nxg6 {[%clk 0:01:20.5]} 1-0

[Event "Early-Titled-Tuesday-Blitz-February-20-2024"]
[Site "Chess.com"]
[Date "2024.02.20"]
[Round "1"]
[White "Zavgorodniy_Sergiy"]
[Black "le-castor-faineant"]
[Result "1-0"]
[WhiteElo "2622"]
[BlackElo "2272"]
[TimeControl "180+1"]
[EndTime "8:05:25 PST"]
[Termination "Zavgorodniy_Sergiy won by resignation"]

1. d4 {[%clk 0:03:00.9]} 1... Nf6 {[%clk 0:02:58.7]} 2. c4 {[%clk 0:03:00.4]}
2... g6 {[%clk 0:02:58.7]} 3. Nf3 {[%clk 0:03:00.5]} 3... Bg7 {[%clk 0:02:58.7]}
4. Nc3 {[%clk 0:03:00.7]} 4... d6 {[%clk 0:02:58.1]} 5. e4 {[%clk 0:03:00.9]}
5... O-O {[%clk 0:02:58.1]} 6. Be2 {[%clk 0:03:00.3]} 6... Nbd7 {[%clk
0:02:50.4]} 7. O-O {[%clk 0:03:00.3]} 7... e5 {[%clk 0:02:50.5]} 8. Qc2 {[%clk
0:02:59.9]} 8... exd4 {[%clk 0:02:49.1]} 9. Nxd4 {[%clk 0:03:00.8]} 9... a5
{[%clk 0:02:49.4]} 10. Be3 {[%clk 0:03:00.2]} 10... Nc5 {[%clk 0:02:49.5]} 11.
f3 {[%clk 0:02:59.8]} 11... Re8 {[%clk 0:02:46.8]} 12. Rfd1 {[%clk 0:02:59.5]}
12... c6 {[%clk 0:02:38]} 13. Bf2 {[%clk 0:02:57.8]} 13... Qc7 {[%clk
0:02:36.3]} 14. Rac1 {[%clk 0:02:56.8]} 14... h5 {[%clk 0:02:30.5]} 15. b3
{[%clk 0:02:56.3]} 15... Ne6 {[%clk 0:02:20.2]} 16. Qd2 {[%clk 0:02:55.4]} 16...
Nc5 {[%clk 0:02:14.3]} 17. Bf1 {[%clk 0:02:54.6]} 17... Rd8 {[%clk 0:02:06.1]}
18. Rb1 {[%clk 0:02:54.5]} 18... Be6 {[%clk 0:01:57.1]} 19. Bh4 {[%clk
0:02:54.2]} 19... Rd7 {[%clk 0:01:55.5]} 20. Qc2 {[%clk 0:02:54.1]} 20... Rb8
{[%clk 0:01:49.2]} 21. Rd2 {[%clk 0:02:53]} 21... Qb6 {[%clk 0:01:28.6]} 22. Bf2
{[%clk 0:02:49.6]} 22... Qc7 {[%clk 0:01:28]} 23. a3 {[%clk 0:02:46.3]} 23... d5
{[%clk 0:01:11.3]} 24. b4 {[%clk 0:02:44.5]} 24... axb4 {[%clk 0:01:09.3]} 25.
axb4 {[%clk 0:02:45.4]} 25... Na6 {[%clk 0:01:04.2]} 26. Bg3 {[%clk 0:02:44.8]}
26... Qd8 {[%clk 0:00:59.2]} 27. Bxb8 {[%clk 0:02:44.6]} 27... Nxb8 {[%clk
0:00:59.8]} 28. Nxe6 {[%clk 0:02:44.7]} 28... fxe6 {[%clk 0:00:59.4]} 29. exd5
{[%clk 0:02:44.9]} 29... exd5 {[%clk 0:00:58.4]} 30. Qxg6 {[%clk 0:02:44.8]}
30... d4 {[%clk 0:00:53.6]} 31. Ne4 {[%clk 0:02:42.4]} 31... Nxe4 {[%clk
0:00:53.3]} 32. Qxe4 {[%clk 0:02:43.3]} 32... c5 {[%clk 0:00:51.3]} 33. b5
{[%clk 0:02:41.5]} 33... Re7 {[%clk 0:00:50]} 34. Qg6 {[%clk 0:02:36.4]} 34...
Nd7 {[%clk 0:00:49.1]} 35. Qxh5 {[%clk 0:02:34.4]} 35... Nf6 {[%clk 0:00:48.6]}
36. Qf5 {[%clk 0:02:34.5]} 36... Qd6 {[%clk 0:00:46.1]} 37. Bd3 {[%clk
0:02:31.8]} 37... Re5 {[%clk 0:00:45.5]} 38. Qc8+ {[%clk 0:02:31.4]} 38... Kf7
{[%clk 0:00:43.6]} 39. Qxb7+ {[%clk 0:02:31.1]} 39... Re7 {[%clk 0:00:43.8]} 40.
Qc6 {[%clk 0:02:28.7]} 40... Qf4 {[%clk 0:00:44.1]} 41. Rdd1 {[%clk 0:02:21.3]}
41... Qe3+ {[%clk 0:00:23.3]} 42. Kh1 {[%clk 0:02:21.5]} 42... Nh5 {[%clk
0:00:20.1]} 43. Qd5+ {[%clk 0:02:21.3]} 1-0

[Event "Early-Titled-Tuesday-Blitz-February-20-2024"]
[Site "Chess.com"]
[Date "2024.02.20"]
[Round "1"]
[White "MikeSailer"]
[Black "CM_rui"]
[Result "0-1"]
[WhiteElo "2152"]
[BlackElo "2574"]
[TimeControl "180+1"]
[EndTime "8:05:25 PST"]
[Termination "CM_rui won by resignation"]

1. d4 {[%clk 0:02:59.6]} 1... Nf6 {[%clk 0:02:59.9]} 2. Nf3 {[%clk 0:02:57.7]}
2... e6 {[%clk 0:03:00.1]} 3. Bf4 {[%clk 0:02:57.2]} 3... b6 {[%clk 0:02:59.9]}
4. e3 {[%clk 0:02:57.3]} 4... Bb7 {[%clk 0:03:00.5]} 5. Be2 {[%clk 0:02:57.8]}
5... Be7 {[%clk 0:03:00.8]} 6. h3 {[%clk 0:02:58.1]} 6... h6 {[%clk 0:03:01.1]}
7. O-O {[%clk 0:02:58.5]} 7... g5 {[%clk 0:03:01.4]} 8. Bh2 {[%clk 0:02:58.6]}
8... Rg8 {[%clk 0:03:01.7]} 9. Ne1 {[%clk 0:02:45.3]} 9... d6 {[%clk 0:02:55.9]}
10. c4 {[%clk 0:02:44.4]} 10... Nbd7 {[%clk 0:02:54.8]} 11. Nc3 {[%clk
0:02:44.8]} 11... h5 {[%clk 0:02:46.6]} 12. d5 {[%clk 0:02:36.6]} 12... g4
{[%clk 0:02:41.9]} 13. hxg4 {[%clk 0:02:28]} 13... hxg4 {[%clk 0:02:40.5]} 14.
dxe6 {[%clk 0:02:16.8]} 14... fxe6 {[%clk 0:02:41.4]} 15. Nd3 {[%clk 0:02:02.6]}
15... Kf7 {[%clk 0:02:36.6]} 16. Nf4 {[%clk 0:02:01.3]} 16... Qf8 {[%clk
0:02:33.7]} 17. Nb5 {[%clk 0:01:51.2]} 17... Qh6 {[%clk 0:02:28.8]} 18. f3
{[%clk 0:01:34]} 18... g3 {[%clk 0:02:24.1]} 19. Bxg3 {[%clk 0:01:28]} 19...
Rxg3 {[%clk 0:02:25]} 20. Nxc7 {[%clk 0:01:21.6]} 20... Rag8 {[%clk 0:02:17.9]}
21. Ncxe6 {[%clk 0:01:21.6]} 21... Ne5 {[%clk 0:02:02.5]} 22. Kf2 {[%clk
0:01:08.3]} 22... Qh4 {[%clk 0:01:46]} 23. Ke1 {[%clk 0:01:08.2]} 23... Rxg2+
{[%clk 0:01:37.6]} 24. Kd2 {[%clk 0:01:08.4]} 24... Bxf3 {[%clk 0:01:29.3]} 25.
Kc1 {[%clk 0:00:54]} 25... Bxe2 {[%clk 0:01:28.4]} 26. Nxe2 {[%clk 0:00:53.1]}
26... Qxc4+ {[%clk 0:01:24.3]} 27. Nc3 {[%clk 0:00:44.4]} 27... Nd3+ {[%clk
0:01:20.4]} 0-1

[Event "Early-Titled-Tuesday-Blitz-February-20-2024"]
[Site "Chess.com"]
[Date "2024.02.20"]
[Round "1"]
[White "Zohid6"]
[Black "FuenfgegenWilly"]
[Result "1-0"]
[WhiteElo "2863"]
[BlackElo "2481"]
[TimeControl "180+1"]
[EndTime "8:05:28 PST"]
[Termination "Zohid6 won by resignation"]

1. e4 {[%clk 0:03:00.9]} 1... e5 {[%clk 0:02:58.8]} 2. Nf3 {[%clk 0:03:01]} 2...
Nc6 {[%clk 0:02:57.8]} 3. Nc3 {[%clk 0:03:01]} 3... Nf6 {[%clk 0:02:57.9]} 4. a3
{[%clk 0:03:00.7]} 4... h6 {[%clk 0:02:56.9]} 5. d4 {[%clk 0:02:58.7]} 5... exd4
{[%clk 0:02:56.8]} 6. Nxd4 {[%clk 0:02:59.6]} 6... Bc5 {[%clk 0:02:54.7]} 7.
Nxc6 {[%clk 0:02:47.6]} 7... bxc6 {[%clk 0:02:53.8]} 8. Bd3 {[%clk 0:02:47.4]}
8... d6 {[%clk 0:02:50.7]} 9. Na4 {[%clk 0:02:39.3]} 9... Bb6 {[%clk 0:02:45.1]}
10. Nxb6 {[%clk 0:02:34.8]} 10... axb6 {[%clk 0:02:46]} 11. O-O {[%clk
0:02:34.4]} 11... O-O {[%clk 0:02:39.6]} 12. b3 {[%clk 0:02:33.7]} 12... Ng4
{[%clk 0:02:36]} 13. h3 {[%clk 0:02:30.9]} 13... Ne5 {[%clk 0:02:35.1]} 14. Be2
{[%clk 0:02:31]} 14... c5 {[%clk 0:02:32.5]} 15. Bb2 {[%clk 0:02:27.7]} 15...
Bb7 {[%clk 0:02:28.5]} 16. f4 {[%clk 0:02:25.7]} 16... Ng6 {[%clk 0:02:14.3]}
17. Bd3 {[%clk 0:02:09]} 17... Qh4 {[%clk 0:02:11.1]} 18. Qd2 {[%clk 0:02:02.3]}
18... Rfe8 {[%clk 0:02:05.4]} 19. Rae1 {[%clk 0:02:01.8]} 19... Bc6 {[%clk
0:01:27.6]} 20. Kh2 {[%clk 0:01:47.3]} 20... Rad8 {[%clk 0:01:19.4]} 21. Qc3
{[%clk 0:01:34.2]} 21... f6 {[%clk 0:01:12.4]} 22. e5 {[%clk 0:01:34.5]} 22...
Nxf4 {[%clk 0:00:58.2]} 23. Qc4+ {[%clk 0:01:31.5]} 23... d5 {[%clk 0:00:58.5]}
24. Qxf4 {[%clk 0:01:31.3]} 24... Qxf4+ {[%clk 0:00:58.6]} 25. Rxf4 {[%clk
0:01:32.2]} 25... fxe5 {[%clk 0:00:59.5]} 26. Rxe5 {[%clk 0:01:30.6]} 26... d4
{[%clk 0:00:56.3]} 27. Rxe8+ {[%clk 0:01:25]} 27... Rxe8 {[%clk 0:00:57.2]} 28.
b4 {[%clk 0:01:25]} 28... Re1 {[%clk 0:00:53.5]} 29. bxc5 {[%clk 0:01:20.8]}
29... bxc5 {[%clk 0:00:54.4]} 30. Rf5 {[%clk 0:01:21.2]} 1-0

[Event "Early-Titled-Tuesday-Blitz-February-20-2024"]
[Site "Chess.com"]
[Date "2024.02.20"]
[Round "1"]
[White "Juicy_Fork"]
[Black "VitaliyBernadskiy"]
[Result "0-1"]
[WhiteElo "2483"]
[BlackElo "2869"]
[TimeControl "180+1"]
[EndTime "8:05:46 PST"]
[Termination "VitaliyBernadskiy won by resignation"]

1. e4 {[%clk 0:03:00.9]} 1... e5 {[%clk 0:02:59.5]} 2. Nf3 {[%clk 0:03:00.7]}
2... Nc6 {[%clk 0:03:00.2]} 3. Bb5 {[%clk 0:03:00.6]} 3... Nf6 {[%clk
0:03:00.5]} 4. d3 {[%clk 0:02:59.8]} 4... d6 {[%clk 0:02:59.5]} 5. O-O {[%clk
0:02:59.3]} 5... a6 {[%clk 0:02:59.4]} 6. Bxc6+ {[%clk 0:02:58.2]} 6... bxc6
{[%clk 0:03:00.3]} 7. Nbd2 {[%clk 0:02:58.4]} 7... a5 {[%clk 0:02:59.5]} 8. a4
{[%clk 0:02:57.8]} 8... Be7 {[%clk 0:02:58.7]} 9. b3 {[%clk 0:02:58.2]} 9... O-O
{[%clk 0:02:58.5]} 10. Bb2 {[%clk 0:02:58.8]} 10... Nh5 {[%clk 0:02:58.3]} 11.
Nc4 {[%clk 0:02:55.1]} 11... Nf4 {[%clk 0:02:56.7]} 12. d4 {[%clk 0:02:53.9]}
12... f6 {[%clk 0:02:47.7]} 13. Ne3 {[%clk 0:02:43.2]} 13... Be6 {[%clk
0:02:32.7]} 14. Qd2 {[%clk 0:02:36.1]} 14... Qe8 {[%clk 0:02:30.3]} 15. Rad1
{[%clk 0:02:11.2]} 15... Qg6 {[%clk 0:02:29.2]} 16. Kh1 {[%clk 0:02:09.8]} 16...
Qxe4 {[%clk 0:02:28.1]} 17. Rfe1 {[%clk 0:02:04.7]} 17... Bh3 {[%clk 0:02:19.8]}
18. dxe5 {[%clk 0:01:30]} 18... fxe5 {[%clk 0:02:09.1]} 19. Rg1 {[%clk
0:00:54.8]} 19... Bxg2+ {[%clk 0:02:01.2]} 20. Nxg2 {[%clk 0:00:37]} 20... Qxf3
{[%clk 0:01:59.8]} 21. Rde1 {[%clk 0:00:17.2]} 21... Nh3 {[%clk 0:01:57.5]} 22.
Rgf1 {[%clk 0:00:16.2]} 22... Nxf2+ {[%clk 0:01:55.7]} 23. Rxf2 {[%clk
0:00:16.4]} 23... Qxf2 {[%clk 0:01:55.7]} 24. Qd3 {[%clk 0:00:17.3]} 24... Qf3
{[%clk 0:01:49.9]} 25. Qc4+ {[%clk 0:00:09.2]} 25... d5 {[%clk 0:01:49.3]} 26.
Qd3 {[%clk 0:00:06.9]} 26... e4 {[%clk 0:01:44.2]} 27. Qxf3 {[%clk 0:00:03.2]}
27... Rxf3 {[%clk 0:01:45.1]} 28. Ne3 {[%clk 0:00:03.5]} 28... Raf8 {[%clk
0:01:44.4]} 29. Rg1 {[%clk 0:00:03.5]} 29... Bf6 {[%clk 0:01:43.4]} 30. Bxf6
{[%clk 0:00:03.3]} 30... R8xf6 {[%clk 0:01:43.2]} 31. Ng4 {[%clk 0:00:04.2]}
31... Rg6 {[%clk 0:01:42.8]} 32. Rg2 {[%clk 0:00:01.6]} 32... Rf1+ {[%clk
0:01:42.2]} 0-1

[Event "Early-Titled-Tuesday-Blitz-February-20-2024"]
[Site "Chess.com"]
[Date "2024.02.20"]
[Round "1"]
[White "microbear"]
[Black "Kostya0705"]
[Result "0-1"]
[WhiteElo "2295"]
[BlackElo "2636"]
[TimeControl "180+1"]
[EndTime "8:05:47 PST"]
[Termination "Kostya0705 won by resignation"]

1. e4 {[%clk 0:02:54.7]} 1... c5 {[%clk 0:02:59.8]} 2. Nf3 {[%clk 0:02:54.1]}
2... e6 {[%clk 0:03:00.3]} 3. d4 {[%clk 0:02:53.2]} 3... cxd4 {[%clk 0:03:01.2]}
4. Nxd4 {[%clk 0:02:53.4]} 4... Nc6 {[%clk 0:03:01.8]} 5. Nc3 {[%clk 0:02:52.3]}
5... Qc7 {[%clk 0:03:01.7]} 6. g3 {[%clk 0:02:49.6]} 6... a6 {[%clk 0:03:01.5]}
7. Bg2 {[%clk 0:02:49.9]} 7... Nf6 {[%clk 0:03:02.1]} 8. O-O {[%clk 0:02:50]}
8... Nxd4 {[%clk 0:03:00.9]} 9. Qxd4 {[%clk 0:02:49.7]} 9... Bc5 {[%clk
0:03:01.8]} 10. Qd3 {[%clk 0:02:49.5]} 10... O-O {[%clk 0:02:59.1]} 11. Bg5
{[%clk 0:02:29.1]} 11... Ne8 {[%clk 0:02:57.6]} 12. Na4 {[%clk 0:02:16.2]} 12...
Ba7 {[%clk 0:02:56.9]} 13. Be7 {[%clk 0:02:16.3]} 13... b5 {[%clk 0:02:52]} 14.
Bxf8 {[%clk 0:02:16.1]} 14... Kxf8 {[%clk 0:02:50.3]} 15. Nc3 {[%clk 0:02:15.7]}
15... Bb7 {[%clk 0:02:49.7]} 16. Rad1 {[%clk 0:02:06.3]} 16... d6 {[%clk
0:02:49.8]} 17. Ne2 {[%clk 0:01:54.4]} 17... Rc8 {[%clk 0:02:48.7]} 18. c3
{[%clk 0:01:54.2]} 18... Qa5 {[%clk 0:02:45.7]} 19. a3 {[%clk 0:01:53.8]} 19...
Qa4 {[%clk 0:02:37.6]} 20. e5 {[%clk 0:01:48.3]} 20... Bxg2 {[%clk 0:02:21.8]}
21. Kxg2 {[%clk 0:01:49.2]} 21... dxe5 {[%clk 0:02:14.2]} 22. Qxh7 {[%clk
0:01:48.9]} 22... Ke7 {[%clk 0:02:09.9]} 23. Rd2 {[%clk 0:01:38.9]} 23... Nf6
{[%clk 0:02:01.2]} 24. Qh4 {[%clk 0:01:25.5]} 24... Rc4 {[%clk 0:01:48.3]} 25.
Qh8 {[%clk 0:01:23.2]} 25... Nd5 {[%clk 0:01:24.7]} 26. Qa8 {[%clk 0:01:16.2]}
26... Rc7 {[%clk 0:01:23.4]} 27. Rfd1 {[%clk 0:01:05.7]} 27... Qe4+ {[%clk
0:01:19.4]} 28. Kf1 {[%clk 0:00:18.2]} 28... Ne3+ {[%clk 0:01:18.2]} 29. fxe3
{[%clk 0:00:17.3]} 29... Qxa8 {[%clk 0:01:19.1]} 0-1

[Event "Early-Titled-Tuesday-Blitz-February-20-2024"]
[Site "Chess.com"]
[Date "2024.02.20"]
[Round "1"]
[White "Chessbard1972"]
[Black "vovachesss"]
[Result "0-1"]
[WhiteElo "2462"]
[BlackElo "2820"]
[TimeControl "180+1"]
[EndTime "8:05:49 PST"]
[Termination "vovachesss won by resignation"]

1. d4 {[%clk 0:03:00.9]} 1... d6 {[%clk 0:02:55.7]} 2. e4 {[%clk 0:03:00]} 2...
Nf6 {[%clk 0:02:55.7]} 3. Nc3 {[%clk 0:02:58.9]} 3... e5 {[%clk 0:02:56.2]} 4.
Nf3 {[%clk 0:02:58.4]} 4... Nbd7 {[%clk 0:02:56.1]} 5. Bc4 {[%clk 0:02:56.2]}
5... Be7 {[%clk 0:02:56.7]} 6. g4 {[%clk 0:02:54.9]} 6... g6 {[%clk 0:02:44.2]}
7. g5 {[%clk 0:02:53.4]} 7... Nh5 {[%clk 0:02:44.5]} 8. dxe5 {[%clk 0:02:51]}
8... Nxe5 {[%clk 0:02:39.3]} 9. Nxe5 {[%clk 0:02:49.8]} 9... dxe5 {[%clk
0:02:40.2]} 10. Qf3 {[%clk 0:02:40.3]} 10... O-O {[%clk 0:02:35.6]} 11. h4
{[%clk 0:02:39.9]} 11... c6 {[%clk 0:02:32.2]} 12. Be3 {[%clk 0:02:38.4]} 12...
b5 {[%clk 0:02:29.4]} 13. Bb3 {[%clk 0:02:36.5]} 13... a5 {[%clk 0:02:29.1]} 14.
a3 {[%clk 0:02:36.2]} 14... Bd7 {[%clk 0:01:38.2]} 15. Rd1 {[%clk 0:02:30]}
15... Qc8 {[%clk 0:01:38.3]} 16. Rg1 {[%clk 0:02:26]} 16... Be6 {[%clk
0:01:37.9]} 17. Ke2 {[%clk 0:02:14.1]} 17... Bxb3 {[%clk 0:01:29.1]} 18. cxb3
{[%clk 0:02:13.6]} 18... Qe6 {[%clk 0:01:30]} 19. Rd3 {[%clk 0:02:02.5]} 19...
Qxb3 {[%clk 0:01:23.7]} 20. Rd2 {[%clk 0:01:56.1]} 20... Qc4+ {[%clk 0:01:13.6]}
21. Ke1 {[%clk 0:01:54.1]} 21... Rad8 {[%clk 0:01:13.8]} 22. Bb6 {[%clk
0:01:39.4]} 22... Rxd2 {[%clk 0:01:10.8]} 23. Kxd2 {[%clk 0:01:39.6]} 23... Qb3
{[%clk 0:00:58.3]} 24. Kc1 {[%clk 0:01:37.7]} 24... b4 {[%clk 0:00:58.5]} 25.
axb4 {[%clk 0:01:27]} 25... axb4 {[%clk 0:00:57.8]} 26. Rd1 {[%clk 0:01:21.5]}
26... bxc3 {[%clk 0:00:53.5]} 27. Qxc3 {[%clk 0:01:18.7]} 27... Qxb6 {[%clk
0:00:53.6]} 28. Qxe5 {[%clk 0:01:18.3]} 28... Bc5 {[%clk 0:00:50.7]} 29. f4
{[%clk 0:01:16.4]} 29... Be3+ {[%clk 0:00:50.5]} 30. Kb1 {[%clk 0:01:16]} 30...
Bxf4 {[%clk 0:00:51.1]} 31. Qc3 {[%clk 0:01:14.1]} 31... Re8 {[%clk 0:00:50.2]}
32. Re1 {[%clk 0:01:12.9]} 32... Be5 {[%clk 0:00:49.9]} 33. Qc2 {[%clk
0:01:12.6]} 33... Nf4 {[%clk 0:00:49.3]} 34. Rd1 {[%clk 0:01:11.2]} 34... Rb8
{[%clk 0:00:48.1]} 35. Rd2 {[%clk 0:01:10.7]} 35... Qxb2+ {[%clk 0:00:48.5]} 36.
Qxb2 {[%clk 0:01:10.7]} 36... Rxb2+ {[%clk 0:00:49.4]} 37. Rxb2 {[%clk
0:01:11.1]} 37... Bxb2 {[%clk 0:00:50.3]} 38. Kxb2 {[%clk 0:01:11.6]} 38... Ng2
{[%clk 0:00:51.2]} 39. Kc3 {[%clk 0:01:11.2]} 39... Nxh4 {[%clk 0:00:51.2]} 40.
Kd4 {[%clk 0:01:11.8]} 40... Nf3+ {[%clk 0:00:51.7]} 41. Kc5 {[%clk 0:01:11.9]}
41... Nxg5 {[%clk 0:00:52.6]} 42. Kxc6 {[%clk 0:01:12.4]} 42... Nxe4 {[%clk
0:00:53.1]} 43. Kd5 {[%clk 0:01:12.1]} 43... Nf6+ {[%clk 0:00:53.7]} 44. Ke5
{[%clk 0:01:11.6]} 44... Kg7 {[%clk 0:00:54.6]} 45. Kf4 {[%clk 0:01:12]} 45...
h6 {[%clk 0:00:54.6]} 0-1

[Event "Early-Titled-Tuesday-Blitz-February-20-2024"]
[Site "Chess.com"]
[Date "2024.02.20"]
[Round "1"]
[White "LionKing2367890"]
[Black "bulletteemo"]
[Result "1/2-1/2"]
[WhiteElo "2259"]
[BlackElo "2605"]
[TimeControl "180+1"]
[EndTime "8:05:50 PST"]
[Termination "Game drawn by repetition"]

1. e4 {[%clk 0:03:00.9]} 1... c5 {[%clk 0:02:58.6]} 2. Nf3 {[%clk 0:03:00.5]}
2... d6 {[%clk 0:02:58.8]} 3. d4 {[%clk 0:03:00.2]} 3... cxd4 {[%clk 0:02:59.7]}
4. Nxd4 {[%clk 0:02:59.8]} 4... Nf6 {[%clk 0:03:00]} 5. f3 {[%clk 0:02:58.9]}
5... g6 {[%clk 0:02:59.5]} 6. c4 {[%clk 0:02:58.8]} 6... Bg7 {[%clk 0:02:57.1]}
7. Nc3 {[%clk 0:02:58.7]} 7... Nc6 {[%clk 0:02:57.2]} 8. Be3 {[%clk 0:02:57.4]}
8... O-O {[%clk 0:02:56.3]} 9. Be2 {[%clk 0:02:57.2]} 9... e6 {[%clk 0:02:48.4]}
10. O-O {[%clk 0:02:56.7]} 10... d5 {[%clk 0:02:43]} 11. cxd5 {[%clk 0:02:53.1]}
11... exd5 {[%clk 0:02:43.1]} 12. exd5 {[%clk 0:02:51]} 12... Nxd5 {[%clk
0:02:41.1]} 13. Nxc6 {[%clk 0:02:48.7]} 13... bxc6 {[%clk 0:02:41.4]} 14. Nxd5
{[%clk 0:02:48.4]} 14... Qxd5 {[%clk 0:02:37.4]} 15. Qxd5 {[%clk 0:02:44.2]}
15... cxd5 {[%clk 0:02:38.3]} 16. Rfd1 {[%clk 0:02:43.7]} 16... Re8 {[%clk
0:02:18.2]} 17. Kf2 {[%clk 0:02:42.5]} 17... Bxb2 {[%clk 0:02:15.6]} 18. Rab1
{[%clk 0:02:42.3]} 18... Bf6 {[%clk 0:02:12.4]} 19. Rxd5 {[%clk 0:02:37.4]}
19... Be6 {[%clk 0:02:12.2]} 20. Rd2 {[%clk 0:02:30.2]} 20... a5 {[%clk
0:02:11.2]} 21. a4 {[%clk 0:02:20.3]} 21... Bc3 {[%clk 0:01:54.6]} 22. Rd6
{[%clk 0:02:05.7]} 22... Bb4 {[%clk 0:01:50.3]} 23. Rdd1 {[%clk 0:01:55.3]}
23... Rac8 {[%clk 0:01:24.9]} 24. Bb5 {[%clk 0:01:54]} 24... Re7 {[%clk
0:01:23.8]} 25. Rbc1 {[%clk 0:01:45.2]} 25... Rxc1 {[%clk 0:01:07]} 26. Rxc1
{[%clk 0:01:44.2]} 26... f6 {[%clk 0:01:06.9]} 27. Rc6 {[%clk 0:01:28.9]} 27...
Kg7 {[%clk 0:01:00.3]} 28. Bc5 {[%clk 0:01:18]} 28... Bxc5+ {[%clk 0:00:33]} 29.
Rxc5 {[%clk 0:01:18.9]} 29... Bb3 {[%clk 0:00:33.6]} 30. Rc3 {[%clk 0:01:08.2]}
30... Bd1 {[%clk 0:00:32.5]} 31. Rc1 {[%clk 0:01:07.9]} 31... Bb3 {[%clk
0:00:32.7]} 32. Rc3 {[%clk 0:01:07.7]} 32... Bd1 {[%clk 0:00:33.1]} 33. Rc1
{[%clk 0:01:06.8]} 33... Bb3 {[%clk 0:00:33.4]} 34. Rc3 {[%clk 0:01:06.8]}
1/2-1/2

[Event "Early-Titled-Tuesday-Blitz-February-20-2024"]
[Site "Chess.com"]
[Date "2024.02.20"]
[Round "1"]
[White "soloderisas"]
[Black "lasRojas"]
[Result "1-0"]
[WhiteElo "2618"]
[BlackElo "2259"]
[TimeControl "180+1"]
[EndTime "8:05:57 PST"]
[Termination "soloderisas won by resignation"]

1. d4 {[%clk 0:03:00.9]} 1... Nf6 {[%clk 0:02:59.2]} 2. Nf3 {[%clk 0:02:58.9]}
2... e6 {[%clk 0:02:59.3]} 3. Bf4 {[%clk 0:02:56.8]} 3... c5 {[%clk 0:02:57.3]}
4. e3 {[%clk 0:02:57.2]} 4... b6 {[%clk 0:02:57.2]} 5. Nbd2 {[%clk 0:02:57.7]}
5... Bb7 {[%clk 0:02:57.2]} 6. Nc4 {[%clk 0:02:58.3]} 6... d6 {[%clk 0:02:55]}
7. dxc5 {[%clk 0:02:58]} 7... dxc5 {[%clk 0:02:48.3]} 8. Qxd8+ {[%clk
0:02:57.2]} 8... Kxd8 {[%clk 0:02:49.2]} 9. O-O-O+ {[%clk 0:02:38.3]} 9... Ke8
{[%clk 0:02:44.6]} 10. Nce5 {[%clk 0:02:34.8]} 10... Nd5 {[%clk 0:02:39]} 11.
Bb5+ {[%clk 0:02:27.7]} 11... Ke7 {[%clk 0:02:35.3]} 12. Bg3 {[%clk 0:02:25.9]}
12... a6 {[%clk 0:02:34.2]} 13. Be2 {[%clk 0:02:16.8]} 13... Nc6 {[%clk
0:02:30.8]} 14. Nc4 {[%clk 0:01:59.6]} 14... Ncb4 {[%clk 0:01:51.6]} 15. a3
{[%clk 0:01:54]} 15... Na2+ {[%clk 0:01:45.7]} 16. Kb1 {[%clk 0:01:33.6]} 16...
Nac3+ {[%clk 0:01:44.6]} 17. bxc3 {[%clk 0:01:34.2]} 17... Nxc3+ {[%clk
0:01:44.5]} 18. Kb2 {[%clk 0:01:34.6]} 18... Nxe2 {[%clk 0:01:36.6]} 19. Bd6+
{[%clk 0:01:34.7]} 19... Ke8 {[%clk 0:01:32.1]} 20. Bxf8 {[%clk 0:01:29.5]}
20... Kxf8 {[%clk 0:01:29.5]} 21. Rd2 {[%clk 0:01:22]} 21... Bd5 {[%clk
0:01:21]} 22. Nfe5 {[%clk 0:01:13.6]} 22... f6 {[%clk 0:01:03.4]} 23. Nd7+
{[%clk 0:01:13.4]} 23... Ke7 {[%clk 0:01:02.4]} 24. Ncxb6 {[%clk 0:01:13.8]}
24... Rad8 {[%clk 0:00:59.5]} 25. Rxe2 {[%clk 0:01:10.4]} 25... Rxd7 {[%clk
0:00:59]} 26. Nxd7 {[%clk 0:01:10.6]} 26... Kxd7 {[%clk 0:00:59.9]} 27. e4
{[%clk 0:01:10.5]} 27... Rb8+ {[%clk 0:00:58.9]} 28. Kc3 {[%clk 0:01:09.6]}
28... Bc6 {[%clk 0:00:58.4]} 29. Rd1+ {[%clk 0:01:09.3]} 29... Kc7 {[%clk
0:00:58.1]} 30. f3 {[%clk 0:01:07.3]} 30... Rb5 {[%clk 0:00:57.7]} 31. Red2
{[%clk 0:01:04.4]} 31... Ra5 {[%clk 0:00:57.1]} 32. Rd6 {[%clk 0:00:56.2]} 32...
Rxa3+ {[%clk 0:00:56.1]} 33. Kb2 {[%clk 0:00:56.2]} 33... Re3 {[%clk 0:00:54.1]}
34. Rxe6 {[%clk 0:00:55.9]} 1-0